Cogmind - Beta 12 @@@ ROGUE MODE // 2023.03.22 @ 01:35:20 Player: Infomantis Result: Escaped! Performance ------------- Evolutions (9) 4500 Regions Visited (27) 5400 Robots Destroyed (336) 1680 Value Destroyed (15359) 15359 Prototype IDs (58) 1160 Alien Tech Used (5) 1000 Bonus (15333) 15333 TOTAL SCORE: 44432 Bonus ------- High Alert Combat Kills 960 Follower Combat Kills 1672 Entered Garrisons 200 Met Zhirov 300 Met Warlord at Base 500 MAIN.C Attacked Warlord 500 Warlord Defense Kills 6096 Built Enhanced Grunts 300 A7 Reached Mainframe 300 Met R17 at Cetus 500 Met R17 at Research 2000 Met Warlord at Research 2000 Win 3000 Friendly Fire -2995 Cogmind --------- Core Integrity 1464/1600 Matter 81/300 Energy 1575/1579 System Corruption 7% Temperature Cool (9) Movement Walking (89) Location To Epsilon Eridani Parts ------- > --- POWER (3) -------- Particle-Quantum Reactor > --- PROPULSION (6) --- HC-Myomer Exoskeleton > --- UTILITY (11) ----- Armored Scrap Engine Experimental Cooling System Huge Storage Unit Makeshift Sensor Array Advanced Signal Interpreter Experimental Targeting Computer Heavy Regenerative Plating Experimental Force Field Advanced Hacking Suite > --- WEAPON (5) ------- Quantum Rifle Enhanced Nova Cannon Energy Dispersion Construct/C > --- INVENTORY (25) --- Experimental Power Amplifier Experimental Heat Sink Experimental Heat Sink Experimental Cooling System High-capacity Storage Unit Experimental Energy Well (600) Quantum Shading Machine Long-range Terrain Scanner Advanced Terrain Scan Processor Core Analyzer Advanced Particle Charger Quantum Capacitor Experimental Cloaking Device Advanced Shield Generator Advanced Force Field Experimental Force Field Antimissile System Hacking Suite Nova Cannon Chain Missile Launcher RU-N14's Throwing Claymores v3 (8) Peak State ------------ > --- POWER ------------ Particle-Quantum Reactor > --- PROPULSION ------- HC-Myomer Exoskeleton > --- UTILITY ---------- Armored Scrap Engine Experimental Cooling System Huge Storage Unit Makeshift Sensor Array Advanced Signal Interpreter Experimental Targeting Computer Heavy Regenerative Plating Experimental Force Field Advanced Hacking Suite > --- WEAPON ----------- Quantum Rifle Enhanced Nova Cannon Chain Missile Launcher Energy Dispersion Construct/C > --- INVENTORY -------- Experimental Power Amplifier Experimental Heat Sink Experimental Heat Sink Experimental Cooling System High-capacity Storage Unit Experimental Energy Well Quantum Shading Machine Long-range Terrain Scanner Advanced Terrain Scan Processor Core Analyzer Advanced Particle Charger Quantum Capacitor Experimental Cloaking Device Advanced Shield Generator Experimental Force Field Antimissile System Hacking Suite Transdimensional Reconstructor Integrated Reactor Core Physics Calibrator Nova Cannon RU-N14's Throwing Claymores v3 [Rating: 211] Favorites ----------- Power Constructs Engine Heavy Ion Engine Reactor Constructs Propulsion Constructs Treads Light Treads Leg Constructs Hover Unit Backup Propulsion III Flight Unit Cooled Field Propulsion Drive Utility Armored Scrap Engine Device Armored Scrap Engine Storage Large Storage Unit Processor Improved Targeting Computer Hackware Improved System Shield Protection Centrium Medium Armor Plating Artifact Core Physics Calibrator Weapon Constructs Energy Gun Quantum Rifle Energy Cannon Constructs Ballistic Gun Assault Rifle Ballistic Cannon Hardcell Cannon Launcher Rocket Launcher Special Weapon RU-N14's Throwing Claymores v3 Impact Weapon Heavy Mace Piercing Weapon Spear Special Melee Weapon Advanced Datajack Build | -11 -10 -9 -9 -8 -8 -8 -6 -6 -6 -6 -6 -6 -5 -5 -5 -5 -4 -4 -4 -4 -4 -3 -3 -2 -2 -2 -1 ------- Run | Jun Mat Mat Min Mat Sto Rec Fac Ext Cet Arc Hub Gar Fac Upp Upp Zhi Pro Fac Upp Upp War Pro Res Res Tes Sec Acc Slots Evolved 18 | . . 2 . 2 . . 4 . . . . . 2 . . . . 2 . . . . 2 2 . . 2 Power 2 | . . . . . . . . . . . . . 1 . . . . . . . . . . 1 . . . Propulsion 4 | . . 1 . 1 . . 1 . . . . . . . . . . . . . . . . 1 . . . Utility 9 | . . 1 . 1 . . 2 . . . . . 1 . . . . 1 . . . . 2 . . . 1 Weapon 3 | . . . . . . . 1 . . . . . . . . . . 1 . . . . . . . . 1 Parts Attached 274 | 7 12 17 3 13 29 8 32 13 8 4 1 4 11 5 2 3 5 10 4 9 14 3 18 5 10 14 10 Power 9 | 1 1 2 . 1 3 . . . . . . . 1 . . . . . . . . . . . . . . Engine 8 | 1 1 2 . 1 3 . . . . . . . . . . . . . . . . . . . . . . Core . | . . . . . . . . . . . . . . . . . . . . . . . . . . . . Reactor 1 | . . . . . . . . . . . . . 1 . . . . . . . . . . . . . . Propulsion 36 | 2 2 5 . 6 8 . 2 4 3 . . . . 1 . . 2 . . . . . . 1 . . . Treads 4 | . . 3 . . . . . . . . . . . 1 . . . . . . . . . . . . . Leg 30 | 2 2 2 . 6 8 . 1 4 3 . . . . . . . 2 . . . . . . . . . . Wheel . | . . . . . . . . . . . . . . . . . . . . . . . . . . . . Hover 1 | . . . . . . . 1 . . . . . . . . . . . . . . . . . . . . Flight 1 | . . . . . . . . . . . . . . . . . . . . . . . . 1 . . . Utility 145 | 2 3 5 3 2 8 4 15 4 3 4 1 4 7 4 2 3 3 9 1 7 10 2 11 4 8 10 6 Device 82 | 1 2 . 1 1 1 1 9 2 2 2 1 3 3 4 2 2 2 5 1 4 6 2 6 3 7 5 4 Storage 12 | 1 . 2 1 . 1 . 1 . 1 . . . 1 . . 1 . 1 . . 1 . 1 . . . . Processor 14 | . 1 2 . . . 1 1 1 . . . . 2 . . . . 2 . 1 1 . . 1 . . 1 Hackware 7 | . . . . . . 1 2 . . 1 . . 1 . . . . . . . . . . . . 2 . Protection 29 | . . 1 1 1 6 1 2 1 . 1 . 1 . . . . 1 1 . 2 2 . 4 . 1 3 . Artifact 1 | . . . . . . . . . . . . . . . . . . . . . . . . . . . 1 Weapon 84 | 2 6 5 . 4 10 4 15 5 2 . . . 3 . . . . 1 3 2 4 1 7 . 2 4 4 Energy Gun 20 | 1 2 1 . . 4 . 3 1 1 . . . 1 . . . . . . . . . 3 . 1 1 1 Energy Cannon 8 | . . 1 . . . . 1 . . . . . . . . . . . 2 1 . . . . . 2 1 Ballistic Gun 14 | 1 2 1 . 3 . 1 2 . . . . . 1 . . . . . . . . . 3 . . . . Ballistic Cannon 3 | . . . . . . . . . . . . . 1 . . . . . . . . . . . 1 1 . Launcher 10 | . . . . 1 1 . 2 . . . . . . . . . . 1 1 1 . 1 . . . . 2 Special Weapon 3 | . . . . . . . . . . . . . . . . . . . . . 2 . 1 . . . . Impact Weapon 18 | . 1 2 . . 5 3 6 . 1 . . . . . . . . . . . . . . . . . . Slashing Weapon . | . . . . . . . . . . . . . . . . . . . . . . . . . . . . Piercing Weapon 1 | . . . . . . . . 1 . . . . . . . . . . . . . . . . . . . Special Melee Weapon 7 | . 1 . . . . . 1 3 . . . . . . . . . . . . 2 . . . . . . Unidentified Prototypes 37 | . . 2 . . 5 . 3 . 3 1 . . 2 . . 2 1 . . 1 5 . . 2 4 4 2 Corrupted Parts 1 | . . . . . . 1 . . . . . . . . . . . . . . . . . . . . . System Corruption 3 | . . . . . . 3 . . . . . . . . . . . . . . . . . . . . . Parts Lost 42 | . 1 3 1 . 5 1 11 1 2 . . 2 2 . . . 2 . . . 2 2 4 . 2 . 1 Power 4 | . 1 1 . . . . 1 . . . . . 1 . . . . . . . . . . . . . . Propulsion 10 | . . 1 . . 3 . 3 1 1 . . 1 . . . . . . . . . . . . . . . Utility 17 | . . 1 1 . 1 1 4 . . . . . . . . . 2 . . . 1 1 3 . 2 . . Weapon 11 | . . . . . 1 . 3 . 1 . . 1 1 . . . . . . . 1 1 1 . . . 1 Highest Loss Streak 6 | . 1 2 1 . 2 1 6 1 1 . . 2 1 . . . 1 . . . 1 2 2 . 1 . 1 To Critical Strikes 1 | . . . . . . . . . . . . 1 . . . . . . . . . . . . . . . Average Slot Usage (%) 69 | . 99 95 99 92 94 65 63 67 68 68 66 66 66 58 58 57 60 61 68 58 61 53 58 58 59 55 55 Engine 3 | . 14 9 11 9 9 8 4 5 1 . . . . . . . . . . . . . . . . . . Reactor 2 | . . . . . . . 1 . 4 6 6 6 5 4 5 5 5 5 5 5 5 5 4 4 4 4 4 Treads 3 | . . 11 33 17 . 3 . . . 1 . . . 3 5 5 2 . . . . 1 . 2 . . . Leg 8 | . 28 20 . 13 31 8 6 14 13 11 13 13 7 . . . 4 10 10 2 . 2 4 1 4 4 4 Device 15 | . 14 3 9 11 14 9 16 14 12 10 11 16 17 20 23 22 19 15 15 11 15 17 23 21 20 13 14 Storage 6 | . 14 11 11 9 9 9 6 6 6 6 6 6 5 5 5 5 5 5 5 5 5 5 4 4 4 4 4 Processor 4 | . . 15 1 . . 1 3 . 6 6 1 . 4 5 5 5 5 8 10 13 10 7 4 4 8 8 9 Hackware 1 | . . . . . . 1 3 6 6 6 13 7 1 2 . . . . . . . . . . . 5 4 Protection 4 | . . 1 10 13 12 6 1 4 . . . 2 2 . . . 2 5 5 4 4 5 5 7 4 3 4 Energy Gun 2 | . 2 . . . . 2 3 3 11 10 6 6 2 . . . . . . . . 1 3 3 6 4 3 Energy Cannon 4 | . . 3 11 4 . . . 3 2 2 6 5 2 9 11 11 8 2 4 4 7 5 1 5 4 5 7 Ballistic Gun 2 | . 16 2 . 4 1 . 3 4 . . . . 4 1 . . . . . 4 1 . 1 . . . . Ballistic Cannon 1 | . . . . . . 3 1 . . . . . . . . . 1 7 10 1 . . 2 1 1 . . Impact Weapon 3 | . 8 15 11 9 15 8 5 . 1 1 . . . . . . . . . . . . . . . . . Naked Turns . | . . . . . . . . . . . . . . . . . . . . . . . . . . . . Heaviest Build 190 | 15 16 28 29 32 33 36 49 52 45 51 45 49 75 65 55 55 79 111 113 113 124 112 156 185 179 180 190 Greatest Support 298 | 20 20 63 63 63 66 66 83 91 136 210 210 210 151 104 104 104 132 132 132 132 183 162 162 298 217 217 212 Greatest Overweight (x) 1 | . . . . . 1 1 1 1 . . . . . . . . . . . . 1 . . . . 1 . Average Overweight (x) . | . . . . . . . . . . . . . . . . . . . . . . . . . . . . Largest Inventory Capacity 25 | 8 8 10 10 10 10 10 15 15 15 15 15 15 15 15 15 15 15 20 20 20 20 20 25 25 25 25 25 Average Capacity 15 | 7 8 8 10 10 10 10 12 15 15 15 15 15 15 15 15 15 15 17 20 20 20 20 20 25 25 25 25 Most Carried 25 | 8 8 10 10 10 10 10 15 15 15 15 15 15 15 15 15 15 15 20 20 20 20 20 24 25 25 25 25 Average Carried 14 | 5 7 7 9 10 9 9 11 14 14 14 14 14 14 14 15 14 13 16 19 19 19 19 19 24 24 24 24 Final Capacity 25 | 8 8 10 10 10 10 10 15 15 15 15 15 15 15 15 15 15 15 20 20 20 20 20 25 25 25 25 25 Final Carried 25 | 8 8 10 10 10 10 10 15 15 15 15 14 15 15 15 15 15 14 20 20 20 20 20 24 25 24 25 23 Scrap Engine Consumption 409 | . . . . . . 44 38 57 22 7 . 3 38 9 5 8 7 9 2 5 42 8 42 27 17 18 1 Constructs Created 29 | . . . . . . 3 3 2 2 1 . . 6 . . . . 1 . 1 2 . 3 2 . 3 . Constructs Modified 110 | . . . . . . 9 11 14 5 5 . 4 6 6 . 1 4 . 1 4 7 5 4 12 3 9 . Class Distribution -------------------- 51% | Construct 20% | Mutant 12% | Scavenger-Construct 5% | Commander-Construct 5% | Scavenger-Mutant 3% | Hacker-Construct Dominant Class ---------------- Mutant | -10/Materials Mutant | -9/Materials Mutant | -9/Mines Scavenger-Mutant | -8/Materials Mutant | -8/Storage Construct | -8/Recycling Construct | -6/Factory Construct | -6/Extension Construct | -6/Cetus Construct | -6/Archives Hacker-Construct | -6/Hub_04(d) Hacker-Construct | -6/Garrison Scavenger-Construct | -5/Factory Construct | -5/Upper Caves Construct | -5/Upper Caves Construct | -5/Zhirov Construct | -4/Proximity Caves Scavenger-Construct | -4/Factory Construct | -4/Upper Caves Construct | -4/Upper Caves Construct | -4/Warlord Construct | -3/Proximity Caves Construct | -3/Research Construct | -2/Research Construct | -2/Testing Scavenger-Construct | -2/Section 7 Mutant | -1/Access Resources | -11 -10 -9 -9 -8 -8 -8 -6 -6 -6 -6 -6 -6 -5 -5 -5 -5 -4 -4 -4 -4 -4 -3 -3 -2 -2 -2 -1 ----------- Run | Jun Mat Mat Min Mat Sto Rec Fac Ext Cet Arc Hub Gar Fac Upp Upp Zhi Pro Fac Upp Upp War Pro Res Res Tes Sec Acc Matter Collected 5259 | 265 225 169 35 110 358 132 546 319 130 39 11 77 313 98 44 56 178 100 359 172 473 258 271 66 76 283 96 Remotely . | . . . . . . . . . . . . . . . . . . . . . . . . . . . . Salvage Created 17343 | 31 340 475 176 136 1012 699 1957 909 218 287 20 461 1303 226 204 114 375 166 345 708 2883 868 853 643 501 958 475 Parts 646 | 6 24 20 7 9 33 22 62 28 9 14 . 29 49 8 3 5 15 14 21 20 71 34 36 17 19 52 19 Haulers Intercepted 16 | . 2 1 . 1 2 . 2 . . . . . 3 . . . . . . 1 . . 1 3 . . . Recyclers Shooed 14 | . . . . . 1 . 4 3 . . . . 4 . . . . . . . . . 2 . . . . Parts Field Recycled . | . . . . . . . . . . . . . . . . . . . . . . . . . . . . Retrieved Matter . | . . . . . . . . . . . . . . . . . . . . . . . . . . . . Parts Self-Destructed 61 | . . . . . . . . . . . . . . 1 . . 4 . 17 10 . 29 . . . . . Prevented 35 | . . . . . . . . . . . . . . . 2 2 13 . . 18 . . . . . . . Kills | -11 -10 -9 -9 -8 -8 -8 -6 -6 -6 -6 -6 -6 -5 -5 -5 -5 -4 -4 -4 -4 -4 -3 -3 -2 -2 -2 -1 ------- Run | Jun Mat Mat Min Mat Sto Rec Fac Ext Cet Arc Hub Gar Fac Upp Upp Zhi Pro Fac Upp Upp War Pro Res Res Tes Sec Acc Combat Hostiles Destroyed 265 | . 9 11 6 4 21 11 27 12 3 3 . 10 12 1 3 . 8 2 12 9 40 17 7 4 7 14 12 Melee 28 | . 2 6 4 2 8 4 2 . . . . . . . . . . . . . . . . . . . . Guns 51 | . 6 . . . . 1 10 7 . 3 . 3 9 . . . . . . 1 . . 3 . 1 6 1 Cannons 99 | . . . . . . 4 2 3 . . . 5 3 1 1 . 7 2 8 5 26 9 3 3 6 8 3 AOE 30 | . . . . 2 . . 1 1 . . . 2 . . . . . . 4 . 3 8 1 . . . 8 Classes Destroyed 25 | 1 4 3 . . . 3 2 1 . . . 1 1 1 . . . . . 1 7 . . . . . . Worker 9 | . . 1 . . . . 1 . . . . . 3 . . . . . . . . . 1 1 1 . 1 Builder 7 | . . . . . . . 1 1 . . . . 2 . . . . . . . . . 3 . . . . Tunneler 5 | 2 . . 2 . . . 1 . . . . . . . . . . . . . . . . . . . . Hauler 16 | . 2 1 . 1 2 . 2 . . . . . 3 . . . . . . 1 . . 1 3 . . . Recycler 12 | . . 1 . . 2 . 3 . . . . . 2 . . . . . . . . . 2 . 1 1 . Minesweeper 1 | . . . . . . . . . . . . . . . . . . . . 1 . . . . . . . Mechanic 1 | . . . . . . . . . . . . . 1 . . . . . . . . . . . . . . Operator 6 | . . . . . . . 1 . . 2 1 . . . . . . 1 . . . . . . . 1 . Watcher 8 | . 2 1 . . . . . . . . . . 1 . . . . 1 . . . . 1 . 1 1 . Swarmer 74 | . 6 5 6 2 7 1 3 . . . . 6 2 . . . 6 . 9 2 1 2 . . 4 8 4 Grunt 88 | . 3 2 . 2 8 1 10 8 . . . . 10 . 3 . . . 3 7 11 6 3 3 2 . 6 Brawler 8 | . . . . . . . . . . . . . . . . . . . . . 5 2 . 1 . . . Duelist 4 | . . . . . . . . . . . . . . . . . . . . . 2 2 . . . . . Protector 4 | . . . . . . . . . . . . . . . . . . . . . 4 . . . . . . Sentry 34 | . . 4 . . 6 5 4 4 . 3 . 3 . . . . 1 . . . . 1 1 . . 2 . Demolisher 5 | . . . . . . 1 . . . . . . . . . . . . . . 4 . . . . . . Specialist 1 | . . . . . . . . . . . . . . . . . . . . . 1 . . . . . . Hunter 20 | . . . . . . 2 8 . 1 . . . . . . . . . . . 2 2 3 . . 2 . Programmer 14 | . . . . . . 1 2 . . . . . . . . . . 2 . . 4 1 . . 1 1 2 Behemoth 4 | . . . . . . . . . . . . 1 . . . . 1 . . . 1 1 . . . . . Cetus Guard 2 | . . . . . . . . . 2 . . . . . . . . . . . . . . . . . . S7 Guard 1 | . . . . . . . . . . . . . . . . . . . . . . . . . . 1 . Enhanced Demolisher 1 | . . . . . . . . . . . . . . . . . . . . . 1 . . . . . . Striker 2 | . . . . . . . . . . . . . . . . . . . . . 2 . . . . . . Executioner 2 | . . . . . . . . . . . . . . . . . . . . . 2 . . . . . . Tinkerer 1 | . . . . . . . . . . . . . . . . . . . . . 1 . . . . . . Surgeon 1 | . . . . . . . . . . . . . . . . . . . . . 1 . . . . . . Thug 1 | . . . . . . . . 1 . . . . . . . . . . . . . . . . . . . Butcher 1 | . . . . . . . . 1 . . . . . . . . . . . . . . . . . . . Mutant 2 | . . . . . . . . . . . . . . 1 . . . . . . 1 . . . . . . Knight 2 | . . . . . . . . . . . . . . . . . . . . . 2 . . . . . . Best Kill Streak 9 | 1 3 4 3 2 4 4 4 4 2 2 1 8 5 1 3 . 4 3 4 2 9 9 4 4 4 5 6 Combat Bots Only 9 | . 3 3 3 2 4 4 4 2 2 2 . 8 3 1 3 . 4 2 4 2 9 9 2 4 4 4 6 Max Kills in Single Turn 5 | 1 1 1 1 2 1 1 2 2 1 1 1 2 2 1 2 . 1 1 3 1 3 3 2 1 2 2 5 Gunslinging . | . . . . . . . . . . . . . . . . . . . . . . . . . . . . Exploded 4 | . . . . 2 . . 1 1 . . . 2 . . . . . . 3 . 2 3 1 . . . 4 Melee 1 | . 1 1 1 1 1 1 1 . . . . . . . . . . . . . . . . . . . . Uniques/NPCs Destroyed . | . . . . . . . . . . . . . . . . . . . . . . . . . . . . Combat | -11 -10 -9 -9 -8 -8 -8 -6 -6 -6 -6 -6 -6 -5 -5 -5 -5 -4 -4 -4 -4 -4 -3 -3 -2 -2 -2 -1 -------- Run | Jun Mat Mat Min Mat Sto Rec Fac Ext Cet Arc Hub Gar Fac Upp Upp Zhi Pro Fac Upp Upp War Pro Res Res Tes Sec Acc Damage Taken 24998 | . 355 798 467 197 1136 1276 4077 1511 675 265 38 1569 1068 9 57 . 531 162 1039 431 2787 696 1776 385 648 2310 735 Core 2337 | . 51 182 67 . 118 130 544 54 89 . . 138 190 5 . . . . 33 13 273 . 130 13 75 207 25 Absorbed by Shields 1138 | . . . . . . . 135 34 . . . . . . . . . . . . . . . 137 247 162 423 Regen/Repaired (Parts) 9259 | . . . . . . 630 1217 735 271 214 . 329 521 156 100 9 447 9 47 289 954 941 169 557 281 1032 351 Core Remaining (%) 68 | 100 79 . 37 . . 54 . . . . . 2 . . . . 80 . . . . 72 90 . . 79 91 Volleys Fired 723 | 7 30 4 9 14 3 38 82 48 12 25 5 46 66 8 3 2 23 9 25 19 77 23 44 21 24 36 20 Largest 4 | 1 2 1 1 1 1 1 2 2 3 2 2 2 3 2 1 2 2 2 3 2 2 2 4 3 3 3 4 Hottest 418 | 20 60 68 68 68 50 27 133 146 156 150 215 215 170 94 46 94 76 119 209 118 314 319 228 228 268 307 418 Shots Fired 1221 | 7 51 4 9 14 3 37 137 94 22 35 10 76 140 12 3 4 30 16 50 24 92 33 98 38 60 82 40 Gun 589 | 7 51 . . 9 3 7 101 64 14 35 5 36 102 4 . . . . . 5 . 8 59 5 27 36 11 Cannon 608 | . . 4 9 1 . 30 31 30 8 . 5 40 38 8 3 4 30 16 46 19 90 22 37 33 33 46 25 Launcher 20 | . . . . 4 . . 5 . . . . . . . . . . . 4 . . 3 . . . . 4 Special 4 | . . . . . . . . . . . . . . . . . . . . . 2 . 2 . . . . Kinetic 428 | 7 42 . . 9 . 7 48 42 . . 5 40 86 3 . 2 . 16 25 5 10 8 23 2 27 21 . Thermal 540 | . 9 4 9 1 . 30 84 32 . 20 5 36 54 6 . . . . 21 . 19 2 60 36 30 47 35 Explosive 24 | . . . . 4 . . 5 . . . . . . . . . . . 4 . 2 3 2 . . . 4 Electromagnetic 177 | . . . . . 3 . . 20 22 15 . . . 3 3 2 30 . . 19 42 . . . 3 14 1 Entropic 52 | . . . . . . . . . . . . . . . . . . . . . 19 20 13 . . . . Robot Hit Streak 31 | 2 11 . 4 9 . 6 31 20 9 6 4 16 13 6 12 18 23 7 6 9 11 5 6 5 9 14 22 Robot Miss Streak 8 | 1 3 4 5 2 . 5 4 7 4 1 3 3 5 2 . . 4 4 3 7 6 2 8 2 2 4 1 Penetration Max 1 | . . . . . . . . 1 . . 1 1 1 . . . . . . . 1 1 1 . . . . Secondary Targets 2 | . . . . . . . . 1 . . . . . . . . . . . . . . 1 . . . . Max Gunslinging Chain 1 | . . . . . . . . 1 . . . . . . . . . . . . . . 1 . . . . Shots Hit Robots 986 | 5 41 38 25 12 54 50 129 92 18 26 6 46 89 7 3 4 23 10 32 14 66 22 44 22 33 49 26 Core Hits 542 | 2 17 7 4 8 8 16 74 84 12 9 2 17 43 5 2 1 8 4 17 7 54 36 26 13 10 28 28 Critical Kills 13 | . 1 2 . 1 2 . . 1 . . . . . . . . . 1 1 . . . . 1 2 1 . Critical Parts Destroyed 43 | . . 7 1 . 15 2 10 . . 1 . . . . . . . 2 1 1 . . 1 . 1 1 . Critical Strikes 60 | . 1 9 1 1 17 3 10 1 . 1 . . . . . . . 3 2 1 2 . 1 1 4 2 . Meltdown 2 | . . . . . . . . 1 . . . . . . . . . . . . . . . 1 . . . Destroy 14 | . . . . . . . 2 . . . . . . . . . . 3 2 1 . . 1 . 3 2 . Blast 1 | . . . . . . . . . . . . . . . . . . . . . . . . . 1 . . Smash 41 | . 1 9 1 1 17 3 8 . . 1 . . . . . . . . . . . . . . . . . Sever 2 | . . . . . . . . . . . . . . . . . . . . . 2 . . . . . . Melee Attacks 285 | . 18 54 35 8 85 28 43 12 . 1 . . . . . . . . . . 1 . . . . . . Impact 271 | . 17 54 35 8 85 28 43 . . 1 . . . . . . . . . . . . . . . . . Slashing . | . . . . . . . . . . . . . . . . . . . . . . . . . . . . Piercing . | . . . . . . . . . . . . . . . . . . . . . . . . . . . . Sneak Attacks 29 | . 3 3 . 1 4 1 3 12 . 1 . . . . . . . . . . 1 . . . . . . Combat Hostiles 1 | . . . . . . 1 . . . . . . . . . . . . . . . . . . . . . Follow-up Attacks 12 | . . 4 . . 5 3 . . . . . . . . . . . . . . . . . . . . . Damage Inflicted 47197 | 64 799 1417 892 505 2054 1496 4101 2346 438 771 263 1522 2873 229 319 178 862 487 1671 1166 8887 3440 2220 1039 1695 2857 2606 Guns 9464 | 64 349 . . 56 . 106 1811 1308 236 675 75 658 1782 32 . . . . . 60 . 116 483 88 508 840 217 Cannons 23086 | . . . 143 . . 390 525 734 202 . 188 727 1001 197 319 178 862 487 1369 1106 7048 1691 1105 889 1143 1996 786 Explosions 6899 | . . . . 278 . . 420 251 . . . 137 90 . . . . . 302 . 1743 1633 409 . 33 . 1603 Melee 7282 | . 450 1417 749 171 2054 1000 1345 . . 96 . . . . . . . . . . . . . . . . . Ramming 370 | . . . . . . . . 53 . . . . . . . . . . . . . . 223 62 11 21 . Kinetic 8695 | 64 327 . . 56 . 106 767 804 . . 188 727 1747 15 . 49 . 487 785 60 905 116 281 21 695 495 . Thermal 12641 | . 22 . 143 . . 390 1569 1050 . 408 75 795 1126 82 . . . . 584 . 465 40 924 956 970 2060 982 Explosive 6388 | . . . . 278 . . 420 . . . . . . . . . . . 302 . 1743 1633 409 . . . 1603 Electromagnetic 7317 | . . . . . . . . 439 438 267 . . . 132 319 129 862 . . 1106 3304 . . . 19 281 21 Impact 7282 | . 450 1417 749 171 2054 1000 1345 . . 96 . . . . . . . . . . . . . . . . . Slashing 96 | . . . . . . . . . . . . . . . . . . . . . 96 . . . . . . Piercing . | . . . . . . . . . . . . . . . . . . . . . . . . . . . . Entropic 4408 | . . . . . . . . . . . . . . . . . . . . . 2374 1651 383 . . . . Highest Corruption 9 | . . . . . . 7 . 2 2 2 . . . . . . . 1 1 1 4 6 . . 1 9 7 Average Corruption 2 | . . . . . . 5 . 2 2 1 . . . . . . . 1 1 1 2 5 . . 1 1 5 Corruption Purged 2 | . . . . . . . . . . 2 . . . . . . . . . . . . . . . . . Corruption Blocked 105 | . . . . . . . . . . . . . . . . . . . . . 1 . . 64 20 20 . Effects 62 | . . . . . . 19 . 10 5 1 . . . . . . . . 6 . 6 10 . . . 2 3 Message Errors 15 | . . . . . . 4 . 2 2 1 . . . . . . . . 1 . 1 2 . . . . 2 Matter Fused 16 | . . . . . . 4 . 3 . . . . . . . . . . . . 2 6 . . . 1 . Heat Flow Errors 10 | . . . . . . 3 . 2 1 . . . . . . . . . . . 2 1 . . . 1 . Energy Discharges 5 | . . . . . . 3 . . 1 . . . . . . . . . . . 1 . . . . . . Parts Fused 2 | . . . . . . . . . 1 . . . . . . . . . 1 . . . . . . . . Data Loss (minor) 9 | . . . . . . 3 . 2 . . . . . . . . . . 3 . . 1 . . . . . Data Loss (major) 2 | . . . . . . 1 . 1 . . . . . . . . . . . . . . . . . . . Alerts 1 | . . . . . . . . . . . . . . . . . . . . . . . . . . . 1 Weapon Failures 2 | . . . . . . 1 . . . . . . . . . . . . 1 . . . . . . . . Overload Shots 5 | . . . . . . . . . . . . . 5 . . . . . . . . . . . . . . Overflow Damage 4199 | . 65 459 181 72 761 289 482 18 . 96 . 11 80 . 5 . 94 55 148 23 281 408 128 . 249 144 150 Projectiles 1561 | . 8 . 12 . . 15 . . . . . 10 30 . 5 . 94 55 148 23 257 347 80 . 249 144 84 Explosions 235 | . . . . . . . . 12 . . . 1 50 . . . . . . . 24 61 21 . . . 66 Melee 2403 | . 57 459 169 72 761 274 482 6 . 96 . . . . . . . . . . . . 27 . . . . Knockbacks 63 | . 2 5 1 . 5 2 3 3 . . . 2 10 1 . . . 3 14 . 5 . 3 . 4 . . Impact 20 | . 1 5 1 . 5 2 3 2 . . . . . . . . . . . . . . 1 . . . . Kinetic 38 | . . . . . . . . 1 . . . 2 10 1 . . . 3 10 . 5 . 2 . 4 . . Secondary 5 | . 1 . . . . . . . . . . . . . . . . . 4 . . . . . . . . Self-Inflicted Damage 290 | . . . . 48 . . . 33 . . . 32 66 . . . . . . . . 68 . . . . 43 Shots 6 | . . . . 1 . . . 1 . . . 1 1 . . . . . . . . 1 . . . . 1 Rammed . | . . . . . . . . . . . . . . . . . . . . . . . . . . . . Targets Rammed 15 | . . . . . . . . 3 . . . . . . . . . . . . . . 8 2 1 1 . Kicked 15 | . . . . . . . . 3 . . . . . . . . . . . . . . 8 2 1 1 . Crushed . | . . . . . . . . . . . . . . . . . . . . . . . . . . . . Highest Temperature 505 | . 40 57 120 28 . 276 222 226 195 63 294 505 28 . . . . . 4 . 376 192 14 . 48 270 206 Average Temperature 81 | . 17 30 44 13 . 125 94 37 73 18 136 172 11 . . . . . 3 . 122 71 6 . 15 96 99 Received Heat Transfer 4063 | . 159 237 . 54 459 189 814 439 66 27 36 174 495 . 27 . 9 9 189 57 222 45 120 78 42 48 68 Effects 6 | . . . . . . 2 . . . . . 3 . . . . . . . . 1 . . . . . . Shutdowns 1 | . . . . . . . . . . . . 1 . . . . . . . . . . . . . . . Energy Bleed 2 | . . . . . . 2 . . . . . . . . . . . . . . . . . . . . . Matter Decay 2 | . . . . . . . . . . . . 1 . . . . . . . . 1 . . . . . . Short Circuit 1 | . . . . . . . . . . . . 1 . . . . . . . . . . . . . . . Siege Activations . | . . . . . . . . . . . . . . . . . . . . . . . . . . . . Robots Corrupted 24 | . . . . . . . . . 3 . . . . . 2 1 1 . . 5 11 . . . . 1 . Combat Hostiles 21 | . . . . . . . . . 3 . . . . . 2 1 1 . . 3 11 . . . . . . Parts Fried 96 | . 3 4 3 1 17 2 9 4 3 3 . . . . 1 1 1 . . 10 30 . . . . 4 . Impact Corruptions 99 | . 3 19 8 2 30 12 19 1 . 4 . . . . . . . . . . . . 1 . . . . Robots Melted 3 | . . . . . . . 1 1 . . . . . . . . . . . . . . . 1 . . . Combat Hostiles 3 | . . . . . . . 1 1 . . . . . . . . . . . . . . . 1 . . . Parts Melted 17 | . . . . . . . 7 7 . . . . . . . . . . . . . . 2 . . 1 . Heat Transferred 12237 | . 50 . 259 . . 703 3062 3982 . . . 100 87 100 . . . . 629 . . . 601 666 555 962 481 Parts Sabotaged . | . . . . . . . . . . . . . . . . . . . . . . . . . . . . Parts Stolen . | . . . . . . . . . . . . . . . . . . . . . . . . . . . . Parts Stripped . | . . . . . . . . . . . . . . . . . . . . . . . . . . . . Power Chain Reactions 4 | . . . . . . . . 2 . . . 1 . . . . . . . . . . . . 1 . . Missiles Intercepted . | . . . . . . . . . . . . . . . . . . . . . . . . . . . . Alert | -11 -10 -9 -9 -8 -8 -8 -6 -6 -6 -6 -6 -6 -5 -5 -5 -5 -4 -4 -4 -4 -4 -3 -3 -2 -2 -2 -1 ------- Run | Jun Mat Mat Min Mat Sto Rec Fac Ext Cet Arc Hub Gar Fac Upp Upp Zhi Pro Fac Upp Upp War Pro Res Res Tes Sec Acc Peak Influence 938 | 10 180 360 260 218 471 216 746 878 739 433 323 475 598 . . . . 121 . . . . 291 278 449 560 938 Initial 432 | . 6 . 140 . 91 160 382 324 432 294 151 226 249 . . . . 12 . . . . 67 119 156 252 318 Average 274 | 2 68 196 91 86 317 87 421 507 590 407 283 345 463 . . . . 36 . . . . 157 149 279 339 591 Maximum Alert Level 3 | . 1 1 1 1 2 1 3 3 3 2 1 2 2 . . . . . . . . . 1 1 2 2 3 Low Security (%) 44 | 100 99 49 97 83 20 99 . . . . 19 . . . . . . 100 . . . . 80 74 7 23 . Level 1 25 | . . 50 2 16 43 . 63 8 . 21 80 55 17 . . . . . . . . . 19 25 74 40 33 Level 2 26 | . . . . . 36 . 25 78 74 78 . 44 82 . . . . . . . . . . . 17 35 30 Level 3 4 | . . . . . . . 11 12 25 . . . . . . . . . . . . . . . . . 36 Level 4 . | . . . . . . . . . . . . . . . . . . . . . . . . . . . . Level 5 . | . . . . . . . . . . . . . . . . . . . . . . . . . . . . High Security . | . . . . . . . . . . . . . . . . . . . . . . . . . . . . Max Security . | . . . . . . . . . . . . . . . . . . . . . . . . . . . . Squads Dispatched 47 | . 1 3 . 1 4 . 4 5 . . 1 . 6 . . . . 1 . . . 1 6 2 2 3 7 Investigation 12 | . . 2 . 1 1 . . 1 . . . . . . . . . . . . . . 3 1 . . 3 Extermination 6 | . . . . . . . 1 . . . . . . . . . . 1 . . . . . . 1 2 1 Reinforcement 22 | . 1 1 . . . . 3 4 . . 1 . 5 . . . . . . . . . 3 1 1 1 1 Assault 3 | . . . . . . . . . . . . . . . . . . . . . . 1 . . . . 2 Garrison 4 | . . . . . 3 . . . . . . . 1 . . . . . . . . . . . . . . Intercept . | . . . . . . . . . . . . . . . . . . . . . . . . . . . . Searches Triggered . | . . . . . . . . . . . . . . . . . . . . . . . . . . . . Construction Impeded 4 | . . . . . . . . 2 . . . . . . . . . . . . . . 2 . . . . Haulers Reinforced 8 | . . . . . . . 1 . . . 1 . 3 . . . . . . . . . 1 1 . . 1 Active Scanning Responses . | . . . . . . . . . . . . . . . . . . . . . . . . . . . . Cargo Convoy Interrupts . | . . . . . . . . . . . . . . . . . . . . . . . . . . . . Stealth | -11 -10 -9 -9 -8 -8 -8 -6 -6 -6 -6 -6 -6 -5 -5 -5 -5 -4 -4 -4 -4 -4 -3 -3 -2 -2 -2 -1 --------- Run | Jun Mat Mat Min Mat Sto Rec Fac Ext Cet Arc Hub Gar Fac Upp Upp Zhi Pro Fac Upp Upp War Pro Res Res Tes Sec Acc Distress Signals 27 | . 4 1 . . 4 . 4 1 2 . . . . . . . . . . . 1 . 3 7 . . . Communications Jammed . | . . . . . . . . . . . . . . . . . . . . . . . . . . . . Distress Signals . | . . . . . . . . . . . . . . . . . . . . . . . . . . . . Times Spotted 497 | . 17 25 8 9 30 11 45 34 11 11 4 14 18 1 4 . 9 5 11 19 103 15 26 4 13 28 22 Peak Tracking Total 20 | . 4 5 3 4 4 7 7 5 5 2 3 8 3 1 4 . 5 1 7 6 20 7 6 4 5 7 8 Tactical Retreats 43 | . 1 9 3 . 6 . 8 . . . . . . . . . 1 . 1 4 2 . . . 2 1 5 Traps | -11 -10 -9 -9 -8 -8 -8 -6 -6 -6 -6 -6 -6 -5 -5 -5 -5 -4 -4 -4 -4 -4 -3 -3 -2 -2 -2 -1 ------- Run | Jun Mat Mat Min Mat Sto Rec Fac Ext Cet Arc Hub Gar Fac Upp Upp Zhi Pro Fac Upp Upp War Pro Res Res Tes Sec Acc Traps Triggered 12 | . . 1 . . 3 . 1 1 . . . 3 . . . . . . . . . . . . 1 2 . Indirectly . | . . . . . . . . . . . . . . . . . . . . . . . . . . . . Trap Hack Attempts 20 | . . . . . . . 20 . . . . . . . . . . . . . . . . . . . . Triggered . | . . . . . . . . . . . . . . . . . . . . . . . . . . . . Disarmed . | . . . . . . . . . . . . . . . . . . . . . . . . . . . . Reprogrammed 1 | . . . . . . . 1 . . . . . . . . . . . . . . . . . . . . Reused 2 | . . . . . . . . . . . . . . . . . . . . 2 . . . . . . . Traps Extracted 1 | . . . . . . . 1 . . . . . . . . . . . . . . . . . . . . Installed 2 | . . . . . . . . . . . . . . . . . . . . 2 . . . . . . . Triggered 14 | . . . . . . . 1 . . . . . . . . . . . . 2 11 . . . . . . Most Traps Carried 1 | . . . . . . . 1 1 1 1 . . . . . . . . . . . . . . . . . Machines | -11 -10 -9 -9 -8 -8 -8 -6 -6 -6 -6 -6 -6 -5 -5 -5 -5 -4 -4 -4 -4 -4 -3 -3 -2 -2 -2 -1 ---------- Run | Jun Mat Mat Min Mat Sto Rec Fac Ext Cet Arc Hub Gar Fac Upp Upp Zhi Pro Fac Upp Upp War Pro Res Res Tes Sec Acc Machines Disabled 32 | . . . . . 4 . . . . 1 1 2 5 1 . . 1 . . . 1 2 2 2 4 4 2 Max in Single Turn 2 | . . . . . 1 . . . . . 1 1 2 1 . . 1 . . . 1 1 1 1 1 1 1 Garrison Access 4 | . . . . . 1 . 1 . . . . . 1 . . . . . . . . . . 1 . . . Machines Repaired . | . . . . . . . . . . . . . . . . . . . . . . . . . . . . Machines Sabotaged . | . . . . . . . . . . . . . . . . . . . . . . . . . . . . Overloaded Fab Kills . | . . . . . . . . . . . . . . . . . . . . . . . . . . . . Hacking | -11 -10 -9 -9 -8 -8 -8 -6 -6 -6 -6 -6 -6 -5 -5 -5 -5 -4 -4 -4 -4 -4 -3 -3 -2 -2 -2 -1 --------- Run | Jun Mat Mat Min Mat Sto Rec Fac Ext Cet Arc Hub Gar Fac Upp Upp Zhi Pro Fac Upp Upp War Pro Res Res Tes Sec Acc Machines Accessed 77 | . 3 6 . 2 7 11 3 8 1 . 1 1 6 . 2 5 . 2 . 2 5 . 2 2 1 4 3 Terminals 46 | . 3 5 . 2 6 6 1 8 1 . . 1 4 . 1 . . 1 . . . . . 1 . 4 2 Fabricators . | . . . . . . . . . . . . . . . . . . . . . . . . . . . . Repair Stations . | . . . . . . . . . . . . . . . . . . . . . . . . . . . . Recycling Units 7 | . . . . . . 5 . . . . . . 1 . . . . . . . . . 1 . . . . Scanalyzers 4 | . . 1 . . . . 1 . . . . . . . . . . 1 . . . . . . 1 . . Garrison Access 7 | . . . . . 1 . 1 . . . 1 . 1 . . . . . . . . . 1 1 . . 1 Total Hacks 195 | . 7 22 . 9 11 34 5 18 1 . 1 1 11 . 2 18 . 9 . 8 10 . 5 4 2 11 6 Successful 124 | . 3 14 . 6 6 21 4 4 1 . 1 1 7 . 2 18 . 7 . 8 10 . . 1 1 8 1 Failed 70 | . 4 8 . 2 5 13 1 14 . . . . 4 . . . . 2 . . . . 5 3 1 3 5 Catastrophic 12 | . . . . . 2 1 1 3 . . . . . . . . . 1 . . . . . 1 . . 3 Database Lockouts 1 | . . . . 1 . . . . . . . . . . . . . . . . . . . . . . . Manual 26 | . . . . . 4 6 . . 1 . . . 5 . . . . . . . . . . . 2 8 . Terminals 117 | . 7 19 . 9 10 21 2 18 1 . . 1 8 . 1 . . 2 . . . . . 3 . 11 4 Fabricators . | . . . . . . . . . . . . . . . . . . . . . . . . . . . . Repair Stations . | . . . . . . . . . . . . . . . . . . . . . . . . . . . . Recycling Units 18 | . . . . . . 13 . . . . . . 2 . . . . . . . . . 3 . . . . Scanalyzers 14 | . . 3 . . . . 2 . . . . . . . . . . 7 . . . . . . 2 . . Garrison Access 9 | . . . . . 1 . 1 . . . 1 . 1 . . . . . . . . . 2 1 . . 2 Terminal Hacks 89 | . 3 11 . 6 5 9 1 4 1 . . 1 2 . 2 18 . 1 . 8 10 . . 1 . 5 1 Record 29 | . . 3 . 3 . . . . . . . . . . 1 6 . . . 7 9 . . . . . . Part Schematic 8 | . . . . . 2 2 . . . . . . . . . 4 . . . . . . . . . . . Robot Analysis 5 | . . . . . . 1 . . . . . . . . . 4 . . . . . . . . . . . Prototype ID Bank 8 | . . 1 . 1 . 2 . . . . . . . . . 4 . . . . . . . . . . . Open Door 8 | . . . . . . . . 3 1 . . . . . 1 . . . . 1 1 . . . . . 1 Open DSF 1 | . . . . . . . . . . . . . . . . . . . . . . . . 1 . . . Branch Access Points 2 | . . 1 . . . . . . . . . . 1 . . . . . . . . . . . . . . Emergency Access Points 3 | . . . . 1 . . . . . . . 1 . . . . . . . . . . . . . 1 . Terminal Index 3 | . 1 . . . . . . . . . . . . . . . . 1 . . . . . . . 1 . Alert Level 3 | . . 1 . . . . 1 1 . . . . . . . . . . . . . . . . . . . Unreport Threat 2 | . . . . . . 1 . . . . . . . . . . . . . . . . . . . 1 . Locate Traps 3 | . 1 1 . . . . . . . . . . . . . . . . . . . . . . . 1 . Dispatch Records 1 | . . 1 . . . . . . . . . . . . . . . . . . . . . . . . . Maintenance Status 3 | . 1 . . . 1 . . . . . . . . . . . . . . . . . . . . 1 . Surveillance Status 1 | . . . . 1 . . . . . . . . . . . . . . . . . . . . . . . Patrol Status 1 | . . 1 . . . . . . . . . . . . . . . . . . . . . . . . . Transport Status 1 | . . . . . 1 . . . . . . . . . . . . . . . . . . . . . . Hauler Manifests 2 | . . 1 . . . 1 . . . . . . . . . . . . . . . . . . . . . Registered Components 2 | . . 1 . . . 1 . . . . . . . . . . . . . . . . . . . . . Zone Layout 3 | . . . . . 1 1 . . . . . . 1 . . . . . . . . . . . . . . Fabricator Hacks . | . . . . . . . . . . . . . . . . . . . . . . . . . . . . Repair Station Hacks . | . . . . . . . . . . . . . . . . . . . . . . . . . . . . Recycling Unit Hacks 8 | . . . . . . 6 . . . . . . 2 . . . . . . . . . . . . . . Report Inventory 5 | . . . . . . 4 . . . . . . 1 . . . . . . . . . . . . . . Retrieve Components 3 | . . . . . . 2 . . . . . . 1 . . . . . . . . . . . . . . Scanalyzer 11 | . . 3 . . . . 2 . . . . . . . . . . 6 . . . . . . . . . Insert Component 6 | . . 1 . . . . 1 . . . . . . . . . . 4 . . . . . . . . . Analyze 5 | . . 2 . . . . 1 . . . . . . . . . . 2 . . . . . . . . . Garrison Access Hacks 4 | . . . . . 1 . 1 . . . 1 . 1 . . . . . . . . . . . . . . Unlock Access 1 | . . . . . . . . . . . 1 . . . . . . . . . . . . . . . . Seal Access 3 | . . . . . 1 . 1 . . . . . 1 . . . . . . . . . . . . . . Unauthorized Hacks 12 | . . . . . . 6 . . . . . . 2 . . . . . . . . . . . 1 3 . Terminals 7 | . . . . . . 2 . . . . . . 2 . . . . . . . . . . . . 3 . Botnet 6 | . . . . . . 2 . . . . . . 2 . . . . . . . . . . . . 2 . Operators 1 | . . . . . . . . . . . . . . . . . . . . . . . . . . 1 . Fabricators . | . . . . . . . . . . . . . . . . . . . . . . . . . . . . Repair Stations . | . . . . . . . . . . . . . . . . . . . . . . . . . . . . Recycling Units 4 | . . . . . . 4 . . . . . . . . . . . . . . . . . . . . . Tunnel 4 | . . . . . . 4 . . . . . . . . . . . . . . . . . . . . . Scanalyzers 1 | . . . . . . . . . . . . . . . . . . . . . . . . . 1 . . Researchers 1 | . . . . . . . . . . . . . . . . . . . . . . . . . 1 . . Garrison Access . | . . . . . . . . . . . . . . . . . . . . . . . . . . . . Data Cores Recovered 4 | . . . . . 1 . . . . . 1 . . . . . . 1 . . . . . . . 1 . Used 1 | . . . . . . . . . . . . . . . . . . 1 . . . . . . . . . Hacking Detections 46 | . 3 5 . 2 5 6 2 5 . . . 1 5 . . . . 2 . . . . 2 2 . 3 3 Full Trace Events 10 | . . 2 . . 1 3 . . . . . . . . . . . . . . . . . 1 . . 3 Feedback Events . | . . . . . . . . . . . . . . . . . . . . . . . . . . . . Feedback Blocked . | . . . . . . . . . . . . . . . . . . . . . . . . . . . . Robot Schematics Acquired . | . . . . . . . . . . . . . . . . . . . . . . . . . . . . Robots Built . | . . . . . . . . . . . . . . . . . . . . . . . . . . . . Authchips . | . . . . . . . . . . . . . . . . . . . . . . . . . . . . Time . | . . . . . . . . . . . . . . . . . . . . . . . . . . . . Total Robot Build Rating . | . . . . . . . . . . . . . . . . . . . . . . . . . . . . Part Schematics Acquired 12 | . . 1 . . 2 2 1 . . . . . . . . 4 . 2 . . . . . . . . . Parts Built . | . . . . . . . . . . . . . . . . . . . . . . . . . . . . Authchips . | . . . . . . . . . . . . . . . . . . . . . . . . . . . . Time . | . . . . . . . . . . . . . . . . . . . . . . . . . . . . Total Part Build Rating . | . . . . . . . . . . . . . . . . . . . . . . . . . . . . Parts Repaired . | . . . . . . . . . . . . . . . . . . . . . . . . . . . . Time . | . . . . . . . . . . . . . . . . . . . . . . . . . . . . Parts Recycled . | . . . . . . . . . . . . . . . . . . . . . . . . . . . . Recycled Matter . | . . . . . . . . . . . . . . . . . . . . . . . . . . . . Retrieved Matter . | . . . . . . . . . . . . . . . . . . . . . . . . . . . . Retrieved Components 6 | . . . . . . 4 . . . . . . 2 . . . . . . . . . . . . . . Parts Scanalyzed 4 | . . 1 . . . . 1 . . . . . . . . . . 2 . . . . . . . . . Part Schematics Acquired 4 | . . 1 . . . . 1 . . . . . . . . . . 2 . . . . . . . . . Parts Damaged . | . . . . . . . . . . . . . . . . . . . . . . . . . . . . Bothacking | -11 -10 -9 -9 -8 -8 -8 -6 -6 -6 -6 -6 -6 -5 -5 -5 -5 -4 -4 -4 -4 -4 -3 -3 -2 -2 -2 -1 ------------ Run | Jun Mat Mat Min Mat Sto Rec Fac Ext Cet Arc Hub Gar Fac Upp Upp Zhi Pro Fac Upp Upp War Pro Res Res Tes Sec Acc Used RIF Installer . | . . . . . . . . . . . . . . . . . . . . . . . . . . . . Robots Hacked 2 | . 1 . . . . . . . . . . . . . . . . . . . 1 . . . . . . Non-combat 1 | . 1 . . . . . . . . . . . . . . . . . . . . . . . . . . Combat 1 | . . . . . . . . . . . . . . . . . . . . . 1 . . . . . . Robot Hacks Applied 2 | . 1 . . . . . . . . . . . . . . . . . . . 1 . . . . . . parse_system 2 | . 1 . . . . . . . . . . . . . . . . . . . 1 . . . . . . Relay Couplers Released 7 | . . . . . 2 . . . . . . . . . . . . . . . . . . 5 . . . Machine Destruction 4 | . . . . . 2 . . . . . . . . . . . . . . . . . . 2 . . . Programmers 3 | . . . . . . . . . . . . . . . . . . . . . . . . 3 . . . Fabnet Peak Effective % . | . . . . . . . . . . . . . . . . . . . . . . . . . . . . Robots Rewired 24 | . . . . . . 9 . 10 . . . . . 3 . . . . . . . 2 . . . . . Allies Hacked . | . . . . . . . . . . . . . . . . . . . . . . . . . . . . Hacks Repelled . | . . . . . . . . . . . . . . . . . . . . . . . . . . . . Allies | -11 -10 -9 -9 -8 -8 -8 -6 -6 -6 -6 -6 -6 -5 -5 -5 -5 -4 -4 -4 -4 -4 -3 -3 -2 -2 -2 -1 -------- Run | Jun Mat Mat Min Mat Sto Rec Fac Ext Cet Arc Hub Gar Fac Upp Upp Zhi Pro Fac Upp Upp War Pro Res Res Tes Sec Acc Total Allies 36 | . . . 3 . . 9 . 14 5 . . . . 3 . . . . . . . 2 . . . . . Largest Group 9 | . . . 3 3 1 9 8 8 9 4 1 1 . 3 3 3 3 . . . . 2 . . . . . Highest-Rated Group 692 | . . . 40 40 13 123 117 341 692 339 96 96 . 60 60 60 60 . . . . 111 . . . . . Highest-Rated Ally 159 | . . . 16 16 13 27 27 159 153 131 96 96 . 20 20 20 20 . . . . 64 . . . . . Total Orders . | . . . . . . . . . . . . . . . . . . . . . . . . . . . . Ally Attacks 242 | . . . . 36 1 . 12 78 72 18 10 2 . . 4 . 3 . . . . 6 . . . . . Total Damage 6633 | . . . . 369 15 . 164 2457 2161 519 467 94 . . 138 . 80 . . . . 169 . . . . . Kills 43 | . . . . 4 1 . 1 21 10 1 4 . . . 1 . . . . . . . . . . . . Allies Corrupted . | . . . . . . . . . . . . . . . . . . . . . . . . . . . . Allies Melted 1 | . . . . . . . . . . . . . . . . . . . . . 1 . . . . . . Intel | -11 -10 -9 -9 -8 -8 -8 -6 -6 -6 -6 -6 -6 -5 -5 -5 -5 -4 -4 -4 -4 -4 -3 -3 -2 -2 -2 -1 ------- Run | Jun Mat Mat Min Mat Sto Rec Fac Ext Cet Arc Hub Gar Fac Upp Upp Zhi Pro Fac Upp Upp War Pro Res Res Tes Sec Acc Robot Analysis Total 5 | . . . . . . 1 . . . . . . . . . 4 . . . . . . . . . . . Derelict Logs Recovered 11 | . . . 3 . . . . . . . . . . 2 1 . 2 . 2 1 . . . . . . . Drone Launches . | . . . . . . . . . . . . . . . . . . . . . . . . . . . . Drone Recoveries . | . . . . . . . . . . . . . . . . . . . . . . . . . . . . Decoded 0b10 Intel 7 | . . . . . . . . . . . . . . . . . . 7 . . . . . . . . . Emergency Access 1 | . . . . . . . . . . . . . . . . . . 1 . . . . . . . . . Items 5 | . . . . . . . . . . . . . . . . . . 5 . . . . . . . . . Machines 1 | . . . . . . . . . . . . . . . . . . 1 . . . . . . . . . Exploration | -11 -10 -9 -9 -8 -8 -8 -6 -6 -6 -6 -6 -6 -5 -5 -5 -5 -4 -4 -4 -4 -4 -3 -3 -2 -2 -2 -1 ------------- Run | Jun Mat Mat Min Mat Sto Rec Fac Ext Cet Arc Hub Gar Fac Upp Upp Zhi Pro Fac Upp Upp War Pro Res Res Tes Sec Acc Turns Passed 21642 | 174 863 725 1261 294 1283 1882 1607 1291 387 335 241 513 992 1499 925 346 786 317 832 600 1315 428 751 615 393 560 427 Spaces Moved 15002 | 108 577 392 690 147 725 1028 759 786 201 136 168 284 659 1094 585 202 474 182 545 536 1291 610 957 699 456 337 374 Core 5 | 5 . . . . . . . . . . . . . . . . . . . . . . . . . . . Treads 3526 | . . 124 690 88 . 337 . . . 7 . . . 696 585 202 246 . . . . 181 . 370 . . . Legs 8591 | 103 577 268 . 59 725 452 562 786 201 129 168 284 375 . . . 209 182 545 86 24 408 957 324 456 337 374 Wheels . | . . . . . . . . . . . . . . . . . . . . . . . . . . . . Hover 695 | . . . . . . 239 197 . . . . . . . . . . . . 29 209 21 . . . . . Flight 2185 | . . . . . . . . . . . . . 284 398 . . 19 . . 421 1058 . . 5 . . . Fastest Speed 50 | 50 120 120 160 120 120 118 112 124 118 118 131 125 73 73 155 155 137 137 137 79 71 53 53 53 62 62 89 Average Speed 113 | 116 120 132 160 143 128 140 143 134 123 124 131 129 111 125 155 155 147 137 137 88 80 53 53 68 62 109 89 Slowest Speed 227 | 120 120 160 160 160 200 227 227 185 132 131 131 140 141 155 155 155 155 137 137 137 138 71 53 136 62 146 89 Overloaded Moves . | . . . . . . . . . . . . . . . . . . . . . . . . . . . . Propulsion Burnouts . | . . . . . . . . . . . . . . . . . . . . . . . . . . . . Robots Hopped 3 | . . . . . . . . . . . . . . . . . . . . 1 2 . . . . . . Cave-ins Triggered . | . . . . . . . . . . . . . . . . . . . . . . . . . . . . Teleports 1 | . . . . . . . . . . . . . . . . . . . . . . . . . . . 1 Exploration Rate (%) 51 | 5 73 41 99 18 73 99 21 87 65 82 13 33 14 97 81 60 64 4 70 55 93 74 24 17 59 17 11 Regions Visited 27 Branch Regions 17 Pre-discovered Areas 12 | . . . 1 . . 4 . . . . . . . 3 . 3 . . . . 1 . . . . . . Known Exits Taken 9 | . 1 1 . 1 . . . . . . 1 . 1 . . . 1 . . . . 1 1 1 . . . Unknown Exits Taken 17 | 1 . . 1 . 1 1 1 1 1 1 . . . 1 1 1 . 1 1 1 1 . . . 1 1 . Scrap Searched 15 | . . . 1 . . . . . . . . . . 6 3 . 2 . 2 1 . . . . . . . Spaces Dug 81 | . 2 1 . 4 4 . 7 . . . . 5 4 . . . . 2 29 . 2 . . 2 1 . 18 Terrain Destroyed 605 | . 2 1 . 52 4 3 18 25 . 3 5 28 58 1 . . . 10 63 5 46 101 50 35 11 13 71 Melee 11 | . 2 1 . 4 4 . . . . . . . . . . . . . . . . . . . . . . Projectile 191 | . . . . . . 3 1 2 . 3 5 20 15 1 . . . 10 16 5 26 28 19 6 11 13 7 AOE 403 | . . . . 48 . . 17 23 . . . 8 43 . . . . . 47 . 20 73 31 29 . . 64 Terrain Rammed . | . . . . . . . . . . . . . . . . . . . . . . . . . . . . Walls Destroyed . | . . . . . . . . . . . . . . . . . . . . . . . . . . . . Machines Disabled . | . . . . . . . . . . . . . . . . . . . . . . . . . . . . Actions | -11 -10 -9 -9 -8 -8 -8 -6 -6 -6 -6 -6 -6 -5 -5 -5 -5 -4 -4 -4 -4 -4 -3 -3 -2 -2 -2 -1 --------- Run | Jun Mat Mat Min Mat Sto Rec Fac Ext Cet Arc Hub Gar Fac Upp Upp Zhi Pro Fac Upp Upp War Pro Res Res Tes Sec Acc Total 18120 | 145 676 514 777 203 941 1396 1074 931 325 266 179 353 797 1214 601 233 534 237 583 638 1486 677 1128 802 516 464 430 Wait 1222 | 16 16 27 38 10 80 157 86 47 84 93 5 11 30 77 8 15 28 17 4 59 81 27 70 56 18 44 18 Move 14969 | 107 576 391 689 146 724 1027 758 785 200 135 167 283 658 1093 584 201 473 181 544 533 1287 609 956 698 455 336 373 Hop 2 | . . . . . . . . . . . . . . . . . . . . 1 1 . . . . . . Pick Up 165 | 8 9 11 1 2 7 9 24 5 6 1 . 4 10 5 1 4 2 13 3 2 7 . 12 8 2 7 2 Fast Attach 139 | 7 3 9 1 8 16 3 11 8 5 2 . 1 6 2 2 4 2 . . 8 7 1 12 3 4 10 4 Attach 63 | . 2 3 1 . 2 4 13 3 2 1 1 2 2 1 . . 4 5 . . 1 1 5 1 1 2 6 Detach 34 | . . 1 . . 2 5 5 4 2 1 . . 2 . . . 1 . . . 1 2 3 1 . 2 2 Swap 77 | . 7 5 1 5 11 1 8 2 1 1 . 1 3 2 . . . 5 4 1 6 1 1 1 6 2 2 Drop 276 | . 15 16 2 10 20 18 24 12 13 6 1 5 19 7 3 7 1 7 3 13 16 3 17 11 5 19 3 Fire 723 | 7 30 4 9 14 3 38 82 48 12 25 5 46 66 8 3 2 23 9 25 19 77 23 44 21 24 36 20 Melee 266 | . 18 47 35 8 76 25 43 12 . 1 . . . . . . . . . . 1 . . . . . . Ram . | . . . . . . . . . . . . . . . . . . . . . . . . . . . . Kick 15 | . . . . . . . . 3 . . . . . . . . . . . . . . 8 2 1 1 . Crush . | . . . . . . . . . . . . . . . . . . . . . . . . . . . . Escape Stasis 5 | . . . . . . . . . . . . . . . . . . . . . . . . . . 5 . Rewire 142 | . . . . . . 109 . 2 . . . . 1 19 . . . . . . 1 10 . . . . . Trap 22 | . . . . . . . 20 . . . . . . . . . . . . 2 . . . . . . . Miscellaneous . | . . . . . . . . . . . . . . . . . . . . . . . . . . . . Route ------- -11/Junkyard -10/Materials (discovered 4 exits: *Mat x3 / [*Min]) -9/Materials (discovered 2 exits: *Min x2) -9/Mines (discovered 3 exits: *Mat x2 / [*Zio]) -8/Materials (discovered 2 exits: [*Fac] / *Sto) -8/Storage (discovered 2 exits: [*Fac] / *Rec) -8/Recycling -6/Factory -6/Extension (discovered 2 exits: *Fac / *Cet) -6/Cetus (discovered 2 exits: *Fac / [*Arc]) -6/Archives (discovered 3 exits: *Fac / *Hub x2) -6/Hub_04(d) -6/Garrison -5/Factory (discovered 3 exits: *Fac / *Upp x2) -5/Upper Caves -5/Upper Caves (discovered 2 exits: *Fac / *Zhi) -5/Zhirov -4/Proximity Caves -4/Factory (discovered 2 exits: *Res / [*Upp]) -4/Upper Caves -4/Upper Caves -4/Warlord -3/Proximity Caves -3/Research -2/Research (discovered 2 exits: *Tes x2) -2/Testing (discovered 2 exits: *Acc / *Sec) -2/Section 7 -1/Access To Epsilon Eridani History --------- Turn | Location | Event 56 | -11/Junkyard | Discovered new exit (range 13) 175 | -11/Junkyard | Entered Materials 285 | -10/Materials | Discovered new exit (range 3) 302 | -10/Materials | Build established: Mutant 433 | -10/Materials | Identified exit to Materials 464 | -10/Materials | Discovered new exit (range 9) 626 | -10/Materials | Discovered exit to Materials (range 16) 756 | -10/Materials | Discovered exit to Materials (range 16) 1038 | -10/Materials | Entered another Materials area 1038 | -9/Materials | Evolved 2 slots: Propulsion x1, Utility x1 1737 | -9/Materials | Identified exit to Mines 1763 | -9/Materials | Entered Mines 1763 | -9/Mines | Discovered new exit (range 6) 1764 | -9/Mines | Learned location of Storage (-8) 1887 | -9/Mines | Discovered new exit (range 9) 2093 | -9/Mines | Core integrity fell below 50% 2241 | -9/Mines | Build established: Scavenger-Mutant 2329 | -9/Mines | Learned location of 1 exit from Proximity Caves 2336 | -9/Mines | Learned Materials terminal intel 2397 | -9/Mines | A Derelict revealed a hidden shortcut to a safe place 2619 | -9/Mines | Assisted by bots powering up and referring to "LRC-V3" 2718 | -9/Mines | Build established: Mutant 3024 | -9/Mines | Entered Materials 3024 | -8/Materials | Accompanied by 3 allies 3024 | -8/Materials | Evolved 2 slots: Propulsion x1, Utility x1 3025 | -8/Materials | Identified exit to Storage 3026 | -8/Materials | Loaded intel: 10 terminal locations 3065 | -8/Materials | Central database locked down 3259 | -8/Materials | Discovered new exit (range 14) 3318 | -8/Materials | Entered Storage 3318 | -8/Storage | Accompanied by 1 ally 3475 | -8/Storage | Build established: Scavenger-Mutant 3812 | -8/Storage | Garrison activated, responded to threat 3876 | -8/Storage | Build established: Mutant 4457 | -8/Storage | Discovered new exit (range 5) 4598 | -8/Storage | Used back door to open Recycling access 4598 | -8/Storage | Discovered new exit (range 3) 4601 | -8/Storage | Entered Recycling 4607 | -8/Recycling | Found Scrap Engine 5261 | -8/Recycling | Discovered new exit (range 15) 5486 | -8/Recycling | Build established: Construct 6223 | -8/Recycling | Build established: Commander-Construct 6483 | -8/Recycling | Entered Factory 6483 | -6/Factory | Accompanied by 9 allies 6483 | -6/Factory | Evolved 4 slots: Propulsion x1, Utility x2, Weapon x1 6788 | -6/Factory | Lost 6 parts (1n3u2w) 7149 | -6/Factory | Build established: Construct 7734 | -6/Factory | Core integrity fell below 50% 7807 | -6/Factory | Spotted B-75 Beast 8074 | -6/Factory | Discovered new exit (range 12) 8090 | -6/Factory | Entered Extension 8290 | -6/Extension | Rescued a captive Derelict 8291 | -6/Extension | Rescued a captive Derelict 8456 | -6/Extension | Rescued A7 8821 | -6/Extension | Spotted B-75 Beast 8836 | -6/Extension | Spotted B-75 Beast 8857 | -6/Extension | Allies destroyed B-75 Beast 8871 | -6/Extension | Allies destroyed B-75 Beast 8890 | -6/Extension | Disrupted transfer network 9299 | -6/Extension | Rescued a captive Derelict 9332 | -6/Extension | Discovered new exit (range 10) 9333 | -6/Extension | Discovered new exit (range 6) 9381 | -6/Extension | Entered Cetus 9381 | -6/Cetus | Accompanied by 8 allies (A7) 9386 | -6/Cetus | Acquired a Cetus Manufacturing Module code from A7 9409 | -6/Cetus | Spotted Cetus Guard 9409 | -6/Cetus | Spotted Cetus Guard 9410 | -6/Cetus | Spotted Cetus Guard 9417 | -6/Cetus | Destroyed Cetus Guard 9421 | -6/Cetus | Spotted Cetus Guard 9426 | -6/Cetus | Destroyed Cetus Guard 9431 | -6/Cetus | Allies destroyed Cetus Guard 9439 | -6/Cetus | Allies destroyed Cetus Guard 9488 | -6/Cetus | Started Cetus Manufacturing Module 9497 | -6/Cetus | Escorted A7 to Cetus Mainframe 9513 | -6/Cetus | Manufactured an Enhanced Grunt 9524 | -6/Cetus | Discovered new exit (range 15) 9538 | -6/Cetus | Manufactured an Enhanced Grunt 9563 | -6/Cetus | Manufactured an Enhanced Grunt 9588 | -6/Cetus | Manufactured an Enhanced Grunt 9613 | -6/Cetus | Manufactured an Enhanced Grunt 9655 | -6/Cetus | Spotted Cetus Guard 9655 | -6/Cetus | Spotted Cetus Guard 9658 | -6/Cetus | Core integrity fell below 20% 9659 | -6/Cetus | Spotted Cetus Guard 9663 | -6/Cetus | Spotted Cetus Guard 9668 | -6/Cetus | Allies destroyed Cetus Guard 9670 | -6/Cetus | Allies destroyed Cetus Guard 9670 | -6/Cetus | Allies destroyed Cetus Guard 9671 | -6/Cetus | Discovered new exit (range 16) 9684 | -6/Cetus | Allies destroyed Cetus Guard 9688 | -6/Cetus | Met Revision 17 9768 | -6/Cetus | Entered Archives 9768 | -6/Archives | Accompanied by 4 allies (A7) 9773 | -6/Archives | Received a hacking code to weaken MAIN.C 9850 | -6/Archives | Discovered new exit (range 14) 9865 | -6/Archives | Discovered new exit (range 15) 9879 | -6/Archives | Discovered new exit (range 14) 10103 | -6/Archives | Entered Hub_04(d) 10103 | -6/Hub_04(d) | Accompanied by 1 ally 10199 | -6/Hub_04(d) | Identified exit to Garrison 10344 | -6/Hub_04(d) | Entered Garrison 10344 | -6/Garrison | Accompanied by 1 ally 10365 | -6/Garrison | Build established: Hacker-Construct 10394 | -6/Garrison | Triggered checkpoint 10539 | -6/Garrison | Spotted B-90 Cyclops 10653 | -6/Garrison | Destroyed 8 combat bots 10653 | -6/Garrison | Spotted B-75 Beast 10726 | -6/Garrison | Destroyed B-75 Beast 10762 | -6/Garrison | Triggered checkpoint 10768 | -6/Garrison | Triggered checkpoint 10803 | -6/Garrison | Discovered new exit (range 11) 10857 | -6/Garrison | Entered Factory 10857 | -5/Factory | Evolved 2 slots: Power x1, Utility x1 10923 | -5/Factory | Garrison activated, responded to threat 10950 | -5/Factory | Build established: Scavenger-Construct 11375 | -5/Factory | Discovered new exit (range 4) 11501 | -5/Factory | Found Launcher Loader 11719 | -5/Factory | Identified exit to Factory 11800 | -5/Factory | Identified exit to Upper Caves 11849 | -5/Factory | Entered Upper Caves 11870 | -5/Upper Caves | Met a Warlord Commander 11871 | -5/Upper Caves | Learned location of Warlord (-4) 11877 | -5/Upper Caves | Found Unknown Device 11877 | -5/Upper Caves | Identified Encrypted Comm Array 12072 | -5/Upper Caves | Learned location of Armory (-4) 12126 | -5/Upper Caves | Attacked by a delusional Derelict stockpiling Unaware 12326 | -5/Upper Caves | Build established: Construct 13081 | -5/Upper Caves | Discovered new exit (range 16) 13348 | -5/Upper Caves | Entered another Upper Caves area 13348 | -5/Upper Caves | Accompanied by 3 allies 13348 | -5/Upper Caves | Discovered exit to Factory (range 7) 13846 | -5/Upper Caves | Learned Factory trap positions 13984 | -5/Upper Caves | Discovered new exit (range 15) 14273 | -5/Upper Caves | Entered Zhirov 14273 | -5/Zhirov | Accompanied by 3 allies 14273 | -5/Zhirov | Discovered new exit (range 3) 14301 | -5/Zhirov | Met Zhirov 14350 | -5/Zhirov | Found Alien Artifact 14350 | -5/Zhirov | Identified Integrated Dissipator 14350 | -5/Zhirov | Installed Integrated Dissipator, increased core heat dissipation (+20) 14385 | -5/Zhirov | Learned location of Quarantine (-3) 14385 | -5/Zhirov | Learned location of Command (-1) 14399 | -5/Zhirov | Zhirov requested help retrieving the SGEMP Prototype 14446 | -5/Zhirov | Found Alien Artifact 14619 | -5/Zhirov | Entered Proximity Caves 14619 | -4/Proximity Caves | Accompanied by 3 allies 14675 | -4/Proximity Caves | Spotted B-86 Titan 14686 | -4/Proximity Caves | Destroyed B-86 Titan 14967 | -4/Proximity Caves | Found Alien Artifact 14967 | -4/Proximity Caves | Identified Dimensional Node Initializer 14967 | -4/Proximity Caves | Initialized slip node 15048 | -4/Proximity Caves | Learned 4 Research zone layouts 15234 | -4/Proximity Caves | Received a Behemoth hack from an annoying Tinkerer 15365 | -4/Proximity Caves | Learned Research trap positions 15384 | -4/Proximity Caves | Build established: Scavenger-Construct 15405 | -4/Proximity Caves | Entered Factory 15405 | -4/Factory | Evolved 2 slots: Utility x1, Weapon x1 15406 | -4/Factory | Loaded intel: 105 trap records 15499 | -4/Factory | Discovered new exit (range 3) 15504 | -4/Factory | Identified exit to Research 15609 | -4/Factory | Identified Transdimensional Reconstructor 15707 | -4/Factory | Discovered new exit (range 9) 15722 | -4/Factory | Entered Upper Caves 15880 | -4/Upper Caves | Build established: Construct 16147 | -4/Upper Caves | Learned location of 1 exit from Research 16421 | -4/Upper Caves | Discovered new exit (range 22) 16554 | -4/Upper Caves | Entered another Upper Caves area 16687 | -4/Upper Caves | Learned Extension trap positions 16687 | -4/Upper Caves | Learned Factory emergency access door positions 16687 | -4/Upper Caves | Learned Extension emergency access door positions 16687 | -4/Upper Caves | Learned Extension stockpile data 16687 | -4/Upper Caves | Learned Extension security intel 16687 | -4/Upper Caves | Learned Factory terminal intel 16730 | -4/Upper Caves | Encountered a Warlord checkpoint 17065 | -4/Upper Caves | Found Imp. Powered Armor 17112 | -4/Upper Caves | Discovered new exit (range 11) 17124 | -4/Upper Caves | Learned 4 Research zone layouts 17154 | -4/Upper Caves | Entered Warlord 17173 | -4/Warlord | Discovered new exit (range 14) 17194 | -4/Warlord | System corruption cleaned by Quarantine Array 17260 | -4/Warlord | Found Prototype Special Weapon 17260 | -4/Warlord | Identified RU-N14's Throwing Claymores v3 17262 | -4/Warlord | Found RU-N14's Throwing Claymores v3 17265 | -4/Warlord | Found RU-N14's Throwing Claymores v3 17304 | -4/Warlord | Learned Factory fabricator intel 17304 | -4/Warlord | Learned Research recycling unit intel 17304 | -4/Warlord | Learned Research garrison access intel 17304 | -4/Warlord | Learned 4 Armory zone layouts 17304 | -4/Warlord | Learned 4 Access zone layouts 17304 | -4/Warlord | Learned 4 Command zone layouts 17304 | -4/Warlord | Learned Research trap positions 17542 | -4/Warlord | Met Warlord 17567 | -4/Warlord | Warlord's base attacked by MAIN.C 17662 | -4/Warlord | Found Prototype Launcher 17789 | -4/Warlord | Found Prototype Processor 17789 | -4/Warlord | Identified Exp. Target Analyzer 17811 | -4/Warlord | Found Prototype Device 17811 | -4/Warlord | Identified Exp. Cloaking Device 17898 | -4/Warlord | Spotted Striker 17906 | -4/Warlord | Spotted Executioner 17917 | -4/Warlord | Warlord forces counterattacked 17967 | -4/Warlord | Destroyed 8 combat bots 17985 | -4/Warlord | Spotted Executioner 17996 | -4/Warlord | Destroyed Executioner 18034 | -4/Warlord | Destroyed 8 combat bots 18068 | -4/Warlord | Spotted Striker 18069 | -4/Warlord | Spotted Striker 18084 | -4/Warlord | Destroyed Striker 18093 | -4/Warlord | Destroyed Striker 18114 | -4/Warlord | Destroyed 7 combat bots 18179 | -4/Warlord | Spotted Executioner 18184 | -4/Warlord | Destroyed Executioner 18221 | -4/Warlord | Destroyed 9 combat bots 18242 | -4/Warlord | Warlord base infiltrated, sounded retreat 18267 | -4/Warlord | Spotted Striker 18367 | -4/Warlord | Spotted B-90 Cyclops 18367 | -4/Warlord | Spotted Striker 18370 | -4/Warlord | Spotted B-86 Titan 18402 | -4/Warlord | Destroyed B-86 Titan 18406 | -4/Warlord | Spotted 6L-ABU(K) 18410 | -4/Warlord | Destroyed 6L-ABU(K) 18410 | -4/Warlord | Destroyed B8-AAK(K) 18433 | -4/Warlord | Found Chain Missile Launcher 18469 | -4/Warlord | Entered Proximity Caves 18476 | -3/Proximity Caves | Spotted B-86 Titan 18480 | -3/Proximity Caves | Destroyed B-86 Titan 18558 | -3/Proximity Caves | Ambushed by research squad 18668 | -3/Proximity Caves | Attracted the attention of an 0b10 outpost 18699 | -3/Proximity Caves | Destroyed 9 combat bots 18778 | -3/Proximity Caves | Discovered exit to Research (range 6) 18897 | -3/Proximity Caves | Entered Research 18897 | -3/Research | Evolved 2 slots: Utility x2 18898 | -3/Research | Identified exit to Research 18900 | -3/Research | Loaded intel: 70 trap records 18901 | -3/Research | Loaded intel: 4 recycling unit locations 18902 | -3/Research | Loaded intel: 4 garrison access locations 19027 | -3/Research | Found Antimissile System 19097 | -3/Research | Revision forces began assault on 0b10 19103 | -3/Research | Found Quantum Capacitor 19109 | -3/Research | Met up with Revision 17++ 19597 | -3/Research | Research terminal network offline 19648 | -3/Research | Entered another Research area 19648 | -2/Research | Warlord forces began assault on 0b10 19648 | -2/Research | Evolved 2 slots: Power x1, Propulsion x1 19649 | -2/Research | Identified exit to Testing 19650 | -2/Research | Loaded intel: 70 trap records 19758 | -2/Research | Research machine network offline 19766 | -2/Research | Met up with Warlord 19780 | -2/Research | Borebot progress halted 20115 | -2/Research | Borebot progress halted 20231 | -2/Research | Borebot progress halted 20232 | -2/Research | Discovered exit to Testing (range 4) 20253 | -2/Research | Found Prototype Processor 20253 | -2/Research | Identified Exp. Targeting Computer 20263 | -2/Research | Entered Testing 20378 | -2/Testing | Found Prototype Energy Gun 20378 | -2/Testing | Identified Tachyon Dispersion Ray 20451 | -2/Testing | Found Prototype Processor 20451 | -2/Testing | Identified Exp. Core Analyzer 20506 | -2/Testing | Discovered new exit (range 16) 20610 | -2/Testing | Spotted Fortress 20653 | -2/Testing | Discovered new exit (range 6) 20656 | -2/Testing | Entered Section 7 20684 | -2/Section 7 | Found Prototype Device 20684 | -2/Section 7 | Identified Exp. Force Field 20729 | -2/Section 7 | Spotted B-90 Cyclops 20756 | -2/Section 7 | Spotted S7 Guard 20767 | -2/Section 7 | Destroyed S7 Guard 20783 | -2/Section 7 | Found Prototype Protection 20783 | -2/Section 7 | Identified Hvy. Regenerative Plating 20804 | -2/Section 7 | Found Alien Artifact 21139 | -2/Section 7 | Found Alien Artifact 21192 | -2/Section 7 | Build established: Scavenger-Construct 21209 | -2/Section 7 | Discovered new exit (range 8) 21216 | -2/Section 7 | Entered Access 21216 | -1/Access | Evolved 2 slots: Utility x1, Weapon x1 21395 | -1/Access | Found Exp. Force Field 21504 | -1/Access | First assault squad dispatched 21505 | -1/Access | Identified Integrated Reactor 21505 | -1/Access | Installed Integrated Reactor, increased core energy generation (+10) 21507 | -1/Access | Identified Core Physics Calibrator 21548 | -1/Access | Warped through subspace 21575 | -1/Access | Spotted B-99 Colossus 21639 | -1/Access | Discovered new exit (range 6) 21642 | -1/Access | Identified exit to Surface 21643 | *** | Escaped! Last Messages --------------- 21516_ U-05 Engineer lays Concrete. 21519_ U-05 Engineer builds a Wall. 21520_ U-05 Engineer lays Concrete. 21533_ Destroyed Adv. Heat Sink. 21536_ Destroyed Hvy. Laser. 21542_ G-73 Enforcer destroyed. 21548_ Acquired 96 matter. 21548_ Warped through subspace. 21554_ Acquired Adv. Force Field. 21578_ YRW1>T XBUWB9HFTE0PJKMQU/HGLYPA 21593_ System corrupted: IFF burst signal emitted. 21636_ Connecting with Terminal... >>Open(Door) Sealed Barrier opened. 21636_ ALERT: Suspicious activity at Terminal A001. Dispatching Investigation squad. 21639_ The Access Shell folds into the floor. 21639_ EXIT=FOUND 21642_ EXIT=IDENTIFIED: SURFACE [Achievement: True Cogmind] Map ----- +----------------------------------------------------+ | ???????????? #????????????# #?# ????????????? | | ???????????? #????????????# #?# ???###+###### | | ???????????? #????????????# #?# ???# | | ????????????###???????????## ### ???# | | ???????????? ##???????????# ########## = | | ???????????? #???????????#= # | | ???????????? ##???????????# # * | | ????????????"#????????????# [ ####### # ! | | ????????????"#????????????######?????# + | | ???????????? #????#################### # ] !!! | | ???????????? #????# # # !!! | | ???????????? #????# # # !!! | | ???????????? #????# " ""k # # | | ???????????? #????# """ """ # # | | ???????????? ###### """ R" # ##+####### | | ???????????? # # " """ + #????????? | | ????????????####### u # #????????? | | ??????????????????# # #????????? | | ??????????????????#################### #????????? | | ?????????????????????????????###?????# #????????? | | ????????????################## ####### #????????? | | ???????????? """" #????????? | | ???????????? BB """" #????????? | | ???????????? BB """" #????????? | | ???????????? """" #????????? | | ????????????????????" "@ #????????? | | ????????????????????" "" #????????? | | ????????????????????" #????????? | | ??????????????BB????" #????????? | | ??????????????BB????" """ """ #????????? | | ????????????????????" """T""" #????????? | | ????????????????????########## ####### #????????? | | ?????????????????????????????###??????H #????????? | | ?????????????????????????????????????? #????????? | | ?????????????????????????????????????? #????????? | | ??????????????????????????????????????A #????????? | | ?????????????????????????????????????? #????????? | | ?????????????????????????????????????????????????? | | ?????????????????????????????????????????????????? | | ?????????????????????????????????????????????????? | | ?????????????????????????????????????????????????? | | ?????????????????????????????????????????????????? | | ?????????????????Au??????k????k??????????????????? | | ?????????????????????????????????????????????????? | | ?????????????????????????????????????????????????? | | ?????????????????????????????????????????????????? | | ?????????????????????????????????????????????????? | | ?????????????????????????????????????????????????? | | ?????????????????????????????????????????????????? | | ?????????????????????????????????????????????????? | +----------------------------------------------------+ Best States ------------- Heat Dissipation 135 Energy Generation 94 Energy Capacity 1643 Matter Stores 300 Matter Capacity 300 Sight Range 20 Robot Scan Range 19 Terrain Scan Range 24 Terrain Scan Density 10 Jamming Range 14 Cloak Strength 4 Power Amplification 40 Base Temperature (-) 100 Armor Coverage 600 Resistance: KI 25 Resistance: TH 25 Weapon Shielding 90 Phase Shifting 15 Evasion (%) 72 Targeting Accuracy 12 Target Analysis 10 Core Analysis 6 Recoil Reduction 5 Energy Filtering 50 Offensive Hacking 14 Defensive Hacking 14 Authchip Count 1 Item Schematics ----------------- Datajack | -9/Materials | Scanalyzed Transmission Jammer | -8/Storage | Hacked Microactuators | -8/Storage | Hacked Adv. Treads | -8/Recycling | Hacked Component Analysis Suite | -8/Recycling | Hacked Adv. Terrain Scanner | -6/Factory | Scanalyzed Assault Drone Bay | -5/Zhirov | Free Exp. Heat Sink | -5/Zhirov | Free Exp. Optical Array | -5/Zhirov | Free Imp. Arc Thrower | -5/Zhirov | Free Lrn. Terrain Scanner | -4/Factory | Scanalyzed Adv. Terrain Scan Processor | -4/Factory | Scanalyzed Robot Schematics ------------------ None Fabricated ------------ Nothing Alien Tech Used ----------------- Integrated Dissipator Dimensional Node Initializer Integrated Reactor Core Physics Calibrator Transdimensional Reconstructor Achievements -------------- True Cogmind Challenges ------------ None Game ------ Seed OpticalScanField Manual? 0 Play Time 05:56:21 Cumulative 325.5 hours Start 2023.03.13 @ 23:19:33 End 2023.03.22 @ 01:35:20 Sessions 7 Manual Loads 0 Difficulty Rogue Special Mode None Game No. 210 Rogue 187 Adventurer 6 Explorer 17 Win Type 0 Total 25 Types 17/0/4/1/0/1/1/1/0 Lore% 94 Gallery% 94 Achievement% 77 Wizard Run 0 Options --------- ASCII 0 Keyboard 0 Movement Numpad Keybinds 0 Fullscreen 1 Font 12/Fuzzy Map View 83x54 Tactical HUD 1 Map Filters NONE Filters NONE Steam 1 RUN: b2507d3b-9502-4be6-89d7-0328e1190297